bitfinex/quotes_SOLUSD_20241126
["timestamp","ask_amount","ask_price","bid_price","bid_amount"]
[1732633529802,42.1539463,231.24,231.2,2.85882732]
[1732633529997,15.1324,231.29,231.07,5.0]
[1732633529998,42.1539463,231.21,231.16,2.85882732]
[1732633530212,42.1539463,231.21,231.2,2.85882732]
[1732633530407,20.0,231.18,231.13,2.85882732]
[1732633530774,62.1539463,231.18,231.1,2.85882732]
[1732633531105,42.1539463,231.22,231.19,2.85882732]
[1732633531289,42.1539463,231.22,231.21,2.85882732]
[1732633531494,20.0,231.2,231.19,2.85882732]
[1732633532512,62.1539463,231.2,231.19,2.85882732]
[1732633532685,42.1539463,231.22,231.18,2.85882732]
[1732633533000,4.3248,231.23,231.21,2.85882732]
[1732633533406,42.1539463,231.22,231.21,2.85882732]
[1732633533583,42.1539463,231.22,231.18,2.85882732]
[1732633533782,42.1539463,231.2,231.14,2.85882732]
[1732633533983,42.1539463,231.15,231.1,2.85882732]
[1732633534209,16.4117,231.23,231.16,2.85882732]
[1732633534210,42.1539463,231.17,231.16,2.85882732]
[1732633534913,20.0,231.14,231.1,2.85882732]
[1732633535103,20.0,231.14,231.03,4.3282]
[1732633535104,62.1539463,231.14,231.13,2.85882732]
[1732633535288,62.1539463,231.14,231.11,2.85882732]
[1732633535483,42.1539463,231.12,231.09,2.85882732]
[1732633535683,20.0,231.1,231.09,2.85882732]
[1732633535906,42.1539463,231.14,231.12,2.85882732]
[1732633536110,4.3258,231.17,231.15,2.85882732]
[1732633536404,42.1539463,231.16,231.11,2.85882732]
[1732633536605,4.3258,231.17,231.05,42.1539463]
[1732633536606,42.1539463,231.13,231.09,2.85882732]
[1732633536798,20.0,231.11,231.1,2.85882732]
[1732633537213,42.1539463,231.15,231.14,2.85882732]
[1732633538006,46.4797463,231.17,231.16,2.85882732]
[1732633538296,42.1539463,231.17,231.16,2.85882732]
[1732633538502,42.1539463,231.17,231.14,2.85882732]
[1732633538809,42.1539463,231.15,231.14,2.85882732]
[1732633539214,46.4795463,231.19,231.18,2.85882732]
[1732633539611,46.4795463,231.19,231.07,4.3275]
[1732633539612,46.4795463,231.19,231.1,2.85882732]
[1732633539791,42.1539463,231.12,231.08,2.85882732]
[1732633539992,42.1539463,231.09,231.08,2.85882732]
[1732633540190,42.1539463,231.09,231.06,2.85882732]
[1732633540514,4.3275,231.08,231.06,2.85882732]
[1732633541122,20.0,231.05,231.04,2.85882732]
[1732633541416,20.0,231.05,231.03,2.85882732]
[1732633541417,42.1539463,231.04,231.03,2.85882732]
[1732633541592,4.3273,231.09,231.07,2.85882732]
[1732633541793,4.3268,231.12,231.1,2.85882732]
[1732633542013,62.1539463,231.11,231.1,2.85882732]
[1732633542211,4.3271,231.1,231.05,2.85882732]
[1732633542509,42.1539463,231.08,231.05,2.85882732]
[1732633542751,42.1539463,231.06,231.05,2.85882732]
[1732633542920,42.1539463,231.06,231.03,2.85882732]
[1732633543209,42.1539463,231.06,230.93,16.8953]
[1732633543210,42.1539463,231.06,231.05,2.85882732]
[1732633543788,20.0,231.06,231.05,2.85882732]
[1732633544012,62.1539463,231.06,230.98,2.85882732]
[1732633544216,4.328,231.05,231.04,2.85882732]
[1732633544399,4.328,231.05,230.97,2.85882732]
[1732633544592,42.1539463,231.03,231.02,2.85882732]
[1732633545013,46.4819463,231.05,231.04,2.85882732]
[1732633545714,62.1539463,231.07,231.06,2.85882732]
[1732633545892,20.0,231.07,231.06,2.85882732]
[1732633546096,42.1539463,231.13,231.12,2.85882732]
[1732633547015,42.1539463,231.13,231.1,2.85882732]
[1732633547016,46.4805463,231.13,231.1,2.85882732]
[1732633547208,20.0,231.09,231.08,2.85882732]
[1732633547407,62.1539463,231.09,231.08,2.85882732]
[1732633547722,62.1539463,231.09,231.04,2.85882732]
[1732633547931,46.4802463,231.15,231.14,2.85882732]
[1732633548305,42.1539463,231.15,231.14,2.85882732]
[1732633548519,57.2954463,231.15,231.08,2.85882732]
[1732633548718,42.1539463,231.14,231.13,2.85882732]
[1732633548921,4.3261,231.15,231.13,2.85882732]
[1732633549307,42.1539463,231.16,231.15,2.85882732]
[1732633549711,42.1539463,231.18,231.15,2.85882732]
[1732633550122,42.1539463,231.18,231.17,2.85882732]
[1732633550324,42.1539463,231.2,231.19,2.85882732]
[1732633550930,42.1539463,231.2,231.16,2.85882732]
[1732633551118,42.1539463,231.17,231.16,2.85882732]
[1732633551429,43.14123191,231.19,231.18,2.85882732]
[1732633552447,5.0,231.34,231.18,2.85882732]
[1732633552448,4.3237,231.29,231.26,2.85882732]
[1732633552609,5.31098561,231.29,231.28,2.85882732]
[1732633553226,5.31098561,231.29,230.91,34.85295318]
[1732633553227,15.1326,231.29,231.17,2.85882732]
[1732633553436,2.14117268,231.28,231.16,2.85882732]
[1732633553629,2.14117268,231.28,231.21,2.85882732]
[1732633553814,23.776884,231.28,231.21,2.85882732]
[1732633554337,42.1539463,231.22,231.21,2.85882732]
[1732633556013,42.1539463,231.24,231.21,2.85882732]
[1732633556215,42.1539463,231.25,231.24,2.85882732]
[1732633556709,42.1539463,231.25,231.2,2.85882732]
[1732633556923,42.1539463,231.21,231.19,2.85882732]
[1732633557128,42.1539463,231.2,231.19,2.85882732]
[1732633557521,20.0,231.17,231.14,2.85882732]
[1732633557729,42.1539463,231.16,231.14,2.85882732]
[1732633557927,20.0,231.13,231.11,2.85882732]
[1732633558122,42.1539463,231.12,231.11,2.85882732]
[1732633558331,20.0,231.12,231.11,2.85882732]
[1732633559045,4.3255,231.19,231.15,2.85882732]
[1732633559332,46.4780463,231.26,231.25,2.85882732]
[1732633559917,46.4780463,231.26,231.22,2.85882732]
[1732633560112,42.1539463,231.24,231.23,2.85882732]
[1732633560334,4.3241,231.26,231.25,2.85882732]
[1732633560529,46.4780463,231.26,231.25,2.85882732]
[1732633561039,57.2883463,231.26,231.22,2.85882732]
[1732633561244,42.1539463,231.25,231.24,2.85882732]
[1732633561418,42.1539463,231.31,231.3,2.85882732]
[1732633561621,42.1539463,231.33,231.3,2.85882732]
[1732633561825,42.1539463,231.33,231.32,2.85882732]
[1732633562032,4.3226,231.34,231.3,2.85882732]
[1732633562335,3.24,231.4,231.39,2.85882732]
[1732633562336,7.5616,231.4,231.39,2.85882732]
[1732633563040,49.7155463,231.4,231.39,2.85882732]
[1732633563233,45.3939463,231.4,231.39,2.85882732]
[1732633565148,3.24,231.4,231.39,2.85882732]
[1732633565323,3.24,231.4,231.39,45.01277362]
[1732633565524,1.98905566,231.56,231.39,45.01277362]
[1732633565525,42.1539463,231.5,231.39,45.01277362]
[1732633565827,42.1539463,231.5,231.37,16.0552]
[1732633565828,46.4735463,231.5,231.49,2.85882732]
[1732633566019,42.1539463,231.5,231.49,2.85882732]
[1732633567136,42.1539463,231.52,231.51,2.85882732]
[1732633567346,42.1539463,231.52,231.49,2.85882732]
[1732633567645,42.1539463,231.52,231.42,2.85882732]
[1732633567646,42.1539463,231.5,231.42,2.85882732]
[1732633567813,42.1539463,231.44,231.38,2.85882732]
[1732633568014,42.1539463,231.4,231.37,2.85882732]
[1732633568236,42.1539463,231.4,231.35,2.85882732]
[1732633568441,42.1539463,231.4,231.38,2.85882732]
[1732633568634,42.1539463,231.44,231.43,2.85882732]
[1732633568841,62.1539463,231.44,231.43,2.85882732]
[1732633569047,20.0,231.41,231.37,2.85882732]
[1732633569229,42.1539463,231.38,231.35,2.85882732]
[1732633569551,42.1539463,231.36,231.35,2.85882732]
[1732633570042,20.0,231.36,231.35,2.85882732]
[1732633570754,20.0,231.34,231.33,2.85882732]
[1732633570924,42.1539463,231.35,231.33,2.85882732]
[1732633571118,20.0,231.37,231.36,2.85882732]
[1732633571352,5.6,231.39,231.38,2.85882732]
[1732633571641,4.3196,231.5,231.46,2.85882732]
[1732633571817,42.1539463,231.49,231.46,2.85882732]
[1732633572018,42.1539463,231.47,231.45,2.85882732]
[1732633572237,42.1539463,231.47,231.42,2.85882732]
[1732633572438,42.1539463,231.49,231.46,2.85882732]
[1732633572625,4.3196,231.5,231.46,2.85882732]
[1732633572946,4.3196,231.5,231.49,2.85882732]
[1732633573421,4.3196,231.5,231.47,2.85882732]
[1732633573625,42.1539463,231.49,231.47,2.85882732]
[1732633573825,42.1539463,231.51,231.47,2.85882732]
[1732633574057,47.7539463,231.56,231.51,2.85882732]
[1732633574351,4.3185,231.56,231.55,2.85882732]
[1732633574520,4.3185,231.56,231.54,2.85882732]
[1732633574521,46.4724463,231.56,231.54,2.85882732]
[1732633574849,5.6,231.55,231.54,2.85882732]
[1732633575032,46.4724463,231.56,231.48,2.85882732]
[1732633575225,42.1539463,231.51,231.5,2.85882732]
[1732633575447,42.1539463,231.53,231.49,2.85882732]
[1732633575630,42.1539463,231.53,231.52,2.85882732]
[1732633575826,42.1539463,231.55,231.54,2.85882732]
[1732633576027,42.1539463,231.55,231.5,2.85882732]
[1732633576252,42.1539463,231.55,231.54,2.85882732]
[1732633576736,4.3189,231.54,231.53,2.85882732]
[1732633576934,15.1161,231.54,231.46,2.85882732]
[1732633577249,15.1161,231.54,231.33,5.0]
[1732633577250,42.1539463,231.47,231.44,2.85882732]
[1732633577448,42.1539463,231.45,231.37,2.85882732]
[1732633577773,62.1539463,231.42,231.39,2.85882732]
[1732633578053,62.1539463,231.42,231.41,2.85882732]
[1732633578054,20.0,231.42,231.41,2.85882732]
[1732633578854,62.1539463,231.48,231.47,2.85882732]
[1732633579027,42.1539463,231.52,231.49,2.85882732]
[1732633579232,46.4729463,231.54,231.51,2.85882732]
[1732633579431,4.3183,231.57,231.56,2.85882732]
[1732633579625,4.3183,231.57,231.54,2.85882732]
[1732633579843,42.1539463,231.56,231.54,2.85882732]
[1732633580052,4.3183,231.57,231.52,2.85882732]
[1732633580341,42.1539463,231.56,231.55,2.85882732]
[1732633581025,46.4724463,231.56,231.55,2.85882732]
[1732633581231,46.4724463,231.56,231.52,2.85882732]
[1732633581455,42.1539463,231.54,231.52,2.85882732]
[1732633582244,42.1539463,231.54,231.5,2.85882732]
[1732633582245,20.0,231.51,231.5,2.85882732]
[1732633584664,46.4726463,231.56,231.55,2.85882732]
[1732633585252,46.4726463,231.56,231.54,2.85882732]
[1732633585851,4.3187,231.56,231.55,2.85882732]
[1732633586047,5.6,231.59,231.55,2.85882732]
[1732633586250,4.3183,231.58,231.55,2.85882732]
[1732633586451,3.24,231.6,231.59,2.85882732]
[1732633586452,7.5579,231.6,231.59,2.85882732]
[1732633586858,3.24,231.6,231.59,2.85882732]
[1732633587171,4.317,231.65,231.59,2.85882732]
[1732633587341,4.317,231.65,231.64,2.85882732]
[1732633587542,15.1091,231.65,231.6,2.85882732]
[1732633587783,15.1091,231.65,231.63,2.85882732]
[1732633587784,42.1539463,231.64,231.63,2.85882732]
[1732633587968,42.1539463,231.64,231.56,2.85882732]
[1732633588146,42.1539463,231.58,231.56,2.85882732]
[1732633588774,9.917,231.65,231.64,2.85882732]
[1732633589067,4.317,231.65,231.64,2.85882732]
[1732633589642,0.5243705,231.67,231.66,2.85882732]
[1732633590065,4.8407705,231.67,231.66,2.85882732]
[1732633591164,24.8407705,231.67,231.66,2.85882732]
[1732633592745,20.0,231.65,231.63,2.85882732]
[1732633592950,20.0,231.64,231.63,2.85882732]
[1732633593354,4.8407705,231.67,231.63,2.85882732]
[1732633593569,4.8407705,231.67,231.66,2.85882732]
[1732633594378,46.9947168,231.67,231.66,2.85882732]
[1732633594553,57.7859168,231.67,231.66,2.85882732]
[1732633594864,57.7859168,231.67,231.53,9.319]
[1732633594865,20.0,231.63,231.62,2.85882732]
[1732633595364,0.5243705,231.67,231.66,2.85882732]
[1732633600159,4.8407705,231.67,231.66,2.85882732]
[1732633600349,0.5243705,231.67,231.66,2.85882732]
[1732633600954,0.5243705,231.67,231.66,49.32937362]
[1732633601349,10.7841,231.83,231.66,49.32937362]
[1732633601350,46.4683463,231.79,231.78,2.85882732]
[1732633602446,57.2539463,231.79,231.78,2.85882732]
[1732633602646,81.0308303,231.79,231.74,2.85882732]
[1732633602843,42.1539463,231.75,231.74,2.85882732]
[1732633603373,20.0,231.72,231.71,2.85882732]
[1732633603569,62.1539463,231.72,231.71,2.85882732]
[1732633604070,62.1539463,231.72,231.69,2.85882732]
[1732633604249,20.0,231.72,231.71,2.85882732]
[1732633604451,15.1037,231.73,231.68,2.85882732]
[1732633604651,42.1539463,231.69,231.68,2.85882732]
[1732633605857,20.0,231.66,231.65,2.85882732]
[1732633606052,62.1539463,231.66,231.65,2.85882732]
[1732633606361,62.1539463,231.66,231.52,20.758]
[1732633606362,20.0,231.63,231.57,2.85882732]
[1732633606566,62.1539463,231.58,231.57,2.85882732]
[1732633606874,20.0,231.55,231.49,2.85882732]
[1732633607079,42.1539463,231.5,231.49,2.85882732]
[1732633612660,46.4735463,231.5,231.49,2.85882732]
[1732633612862,46.4735463,231.5,231.47,2.85882732]
[1732633613056,4.3196,231.5,231.49,2.85882732]
[1732633613568,4.3196,231.5,231.47,2.85882732]
[1732633613780,4.3196,231.5,231.49,2.85882732]
[1732633614273,30.14095154,231.5,231.49,2.85882732]
[1732633616267,20.0,231.47,231.44,2.85882732]
[1732633616588,30.14185154,231.45,231.44,2.85882732]
[1732633616958,30.14185154,231.45,231.42,2.85882732]
[1732633617278,25.82135154,231.43,231.42,2.85882732]
[1732633620283,5.6,231.5,231.35,6.6567]
[1732633620284,25.82135154,231.45,231.44,2.85882732]
[1732633620981,30.14185154,231.45,231.44,2.85882732]
[1732633621379,30.14185154,231.45,231.42,2.85882732]
[1732633621587,25.82135154,231.43,231.4,2.85882732]
[1732633621776,20.0,231.39,231.36,2.85882732]
[1732633621958,25.82135154,231.36,231.34,2.85882732]
[1732633622263,25.82135154,231.38,231.37,2.85882732]
[1732633622465,25.82135154,231.4,231.35,2.85882732]
[1732633622678,25.82135154,231.4,231.39,2.85882732]
[1732633623977,30.14285154,231.4,231.35,2.85882732]
[1732633624193,25.82135154,231.4,231.39,2.85882732]
[1732633624881,30.14285154,231.4,231.39,2.85882732]
[1732633625872,30.14285154,231.4,231.37,2.85882732]
[1732633626068,4.3215,231.4,231.39,2.85882732]
[1732633626388,30.14285154,231.4,231.35,2.85882732]
[1732633626592,24.3215,231.4,231.36,2.85882732]
[1732633626803,35.1253,231.4,231.34,2.85882732]
[1732633627085,35.1253,231.4,231.3,9.86349655]
[1732633627086,20.0,231.35,231.31,2.85882732]
[1732633627292,25.82135154,231.32,231.31,2.85882732]
[1732633627781,25.82135154,231.34,231.33,2.85882732]
[1732633627990,30.14285154,231.4,231.37,2.85882732]
[1732633628169,4.3215,231.4,231.39,2.85882732]
[1732633628371,20.0,231.41,231.39,2.85882732]
[1732633628889,40.94155154,231.48,231.45,2.85882732]
[1732633629069,25.82135154,231.46,231.45,2.85882732]
[1732633629469,25.82135154,231.46,231.4,2.85882732]
[1732633629683,25.82135154,231.41,231.4,2.85882732]
[1732633630787,30.14265154,231.41,231.4,2.85882732]
[1732633630965,20.0,231.37,231.32,2.85882732]
[1732633631170,25.82135154,231.33,231.32,2.85882732]
[1732633631765,20.0,231.31,231.3,9.86349655]
[1732633631981,20.0,231.31,231.21,2.85882732]
[1732633631982,20.0,231.27,231.21,2.85882732]
[1732633632203,25.82135154,231.22,231.19,2.85882732]
[1732633632376,45.82135154,231.2,231.15,2.85882732]
[1732633632692,25.82135154,231.16,231.1,2.85882732]
[1732633632896,25.82135154,231.11,231.07,2.85882732]
[1732633633095,25.82135154,231.11,231.1,2.85882732]
[1732633633594,25.82135154,231.11,231.06,2.85882732]
[1732633633768,25.82135154,231.11,231.1,2.85882732]
[1732633633966,25.82135154,231.13,231.12,2.85882732]
[1732633634166,25.82135154,231.13,231.07,2.85882732]
[1732633634399,25.82135154,231.1,231.05,2.85882732]
[1732633634696,20.0,231.11,231.09,3.38319782]
[1732633635072,25.82135154,231.2,231.17,2.85882732]
[1732633635397,25.82135154,231.26,231.25,2.85882732]
[1732633635695,30.14505154,231.28,231.27,2.85882732]
[1732633636877,13.12813125,231.31,231.3,2.85882732]
[1732633644004,30.14225154,231.43,231.4,2.85882732]
[1732633644300,30.14225154,231.43,231.42,2.85882732]
[1732633644873,40.94465154,231.43,231.33,2.85882732]
[1732633645100,5.6,231.42,231.4,2.85882732]
[1732633645289,5.6,231.41,231.4,2.85882732]
[1732633645601,4.14850848,231.47,231.23,5.0]
[1732633645602,23.776884,231.38,231.31,2.85882732]
[1732633645904,23.776884,231.38,231.25,2.85882732]
[1732633645905,20.0,231.3,231.25,2.85882732]
[1732633646205,20.0,231.23,231.2,2.85882732]
[1732633646387,25.82135154,231.21,231.16,2.85882732]
[1732633646581,25.82135154,231.17,231.16,2.85882732]
[1732633646992,25.82135154,231.19,231.16,2.85882732]
[1732633647379,45.82135154,231.23,231.16,2.85882732]
[1732633647585,25.82135154,231.21,231.17,2.85882732]
[1732633647796,50.14595154,231.23,231.22,2.85882732]
[1732633648277,45.82135154,231.23,231.22,2.85882732]
[1732633648479,20.0,231.23,231.22,2.85882732]
[1732633648695,20.0,231.23,231.17,25.82135154]
[1732633648696,20.0,231.27,231.26,2.85882732]
[1732633648892,4.3233,231.31,231.3,2.85882732]
[1732633649280,25.82135154,231.32,231.3,2.85882732]
[1732633649485,30.14435154,231.32,231.3,2.85882732]
[1732633650198,25.82135154,231.34,231.31,2.85882732]
[1732633650402,42.01180023,231.33,231.31,2.85882732]
[1732633651401,42.01180023,231.35,231.31,2.85882732]
[1732633651625,46.33420023,231.35,231.32,2.85882732]
[1732633651908,46.33420023,231.35,231.27,42.01180023]
[1732633651909,46.33420023,231.35,231.34,2.85882732]
[1732633652313,46.33420023,231.35,231.32,2.85882732]
[1732633652508,42.01180023,231.33,231.32,2.85882732]
[1732633652714,46.33400023,231.37,231.36,2.85882732]
[1732633653011,4.3217,231.39,231.38,2.85882732]
[1732633653513,4.3217,231.39,231.33,2.85882732]
[1732633653701,23.776884,231.38,231.31,2.85882732]
[1732633653908,23.776884,231.36,231.32,2.85882732]
[1732633654088,20.0,231.33,231.32,2.85882732]
[1732633654520,15.1259,231.39,231.31,2.85882732]
[1732633654811,46.33510023,231.31,231.3,2.85882732]
[1732633655187,20.0,231.28,231.26,2.85882732]
[1732633655396,42.01180023,231.27,231.26,2.85882732]
[1732633656013,20.0,231.25,231.24,2.85882732]
[1732633656310,62.01180023,231.25,231.24,2.85882732]
[1732633656891,66.33610023,231.25,231.24,2.85882732]
[1732633657088,20.0,231.25,231.24,2.85882732]
[1732633657507,62.01180023,231.25,231.24,2.85882732]
[1732633657983,20.0,231.25,231.24,2.85882732]
[1732633658186,62.01180023,231.25,231.24,2.85882732]
[1732633658403,46.33580023,231.27,231.26,2.85882732]
[1732633658583,10.808,231.31,231.28,2.85882732]
[1732633658584,20.0,231.29,231.28,2.85882732]
[1732633658786,46.33530023,231.29,231.28,2.85882732]
[1732633658989,42.01180023,231.29,231.28,2.85882732]
[1732633659199,42.01180023,231.33,231.3,2.85882732]
[1732633659422,42.01180023,231.33,231.32,2.85882732]
[1732633659806,42.01180023,231.35,231.34,2.85882732]
[1732633660507,42.01180023,231.35,231.31,2.85882732]
[1732633660715,66.33480023,231.32,231.31,2.85882732]
[1732633660924,66.33480023,231.32,231.27,2.85882732]
[1732633661121,42.01180023,231.3,231.29,2.85882732]
[1732633661306,42.01180023,231.3,231.15,10.8152]
[1732633661307,42.01180023,231.3,231.27,2.85882732]
[1732633661504,24.323,231.32,231.27,2.85882732]
[1732633661505,42.01180023,231.28,231.27,2.85882732]
[1732633662615,62.01180023,231.3,231.29,2.85882732]
[1732633663004,66.33510023,231.3,231.29,2.85882732]
[1732633663908,66.33510023,231.3,231.25,2.85882732]
[1732633664125,66.33510023,231.3,231.29,2.85882732]
[1732633664819,66.33510023,231.3,231.26,2.85882732]
[1732633665004,42.01180023,231.27,231.26,2.85882732]
[1732633665633,20.0,231.25,231.24,2.85882732]
[1732633665924,62.01180023,231.25,231.24,2.85882732]
[1732633666903,42.01180023,231.27,231.26,2.85882732]
[1732633667103,42.01180023,231.31,231.3,2.85882732]
[1732633667314,4.323,231.32,231.3,2.85882732]
[1732633667531,42.01180023,231.31,231.3,2.85882732]
[1732633667915,4.323,231.32,231.3,2.85882732]
[1732633668519,42.01180023,231.31,231.3,2.85882732]
[1732633669235,46.33500023,231.31,231.3,2.85882732]
[1732633669847,46.33500023,231.31,231.28,2.85882732]
[1732633670136,5.6,231.34,231.28,2.85882732]
[1732633670353,46.33460023,231.33,231.32,2.85882732]
[1732633670713,4.3228,231.33,231.32,2.85882732]
[1732633672811,25.85709002,231.36,231.35,2.85882732]
[1732633673017,30.17929002,231.36,231.35,2.85882732]
[1732633673243,25.85709002,231.4,231.39,2.85882732]
[1732633673445,25.85709002,231.42,231.41,2.85882732]
[1732633673612,4.321,231.43,231.41,2.85882732]
[1732633674022,25.85709002,231.44,231.41,2.85882732]
[1732633674236,4.3207,231.45,231.44,2.85882732]
[1732633674412,4.3207,231.45,231.37,25.85709002]
[1732633674413,0.38117268,231.44,231.37,25.85709002]
[1732633675217,0.38117268,231.44,231.38,4.3218]
[1732633675538,0.38117268,231.44,231.37,30.17909002]
[1732633675910,26.2382627,231.44,231.37,25.85709002]
[1732633676108,0.38117268,231.44,231.39,25.85709002]
[1732633677421,0.38117268,231.44,231.36,5.0]
[1732633677422,25.85709002,231.4,231.29,5.0]
[1732633677621,25.85709002,231.4,231.28,5.0]
[1732633677622,25.85709002,231.4,231.32,5.0]
[1732633678510,25.85709002,231.4,231.31,25.85709002]
[1732633678719,4.3207,231.44,231.29,30.85709002]
[1732633678720,25.85709002,231.38,231.29,30.85709002]
[1732633678918,25.85709002,231.38,231.29,25.85709002]
[1732633679118,25.85709002,231.36,231.28,4.3237]
[1732633679345,30.17929002,231.36,231.28,4.3237]
[1732633679522,25.85709002,231.38,231.29,25.85709002]
[1732633679840,25.85709002,231.38,231.28,14.3237]
[1732633679841,25.85709002,231.36,231.28,9.3237]
[1732633680218,25.85709002,231.36,231.27,41.12629002]
[1732633680421,25.85709002,231.38,231.29,25.85709002]
[1732633680737,25.85709002,231.38,231.28,33.776884]
[1732633680738,30.17869002,231.4,231.31,25.85709002]
[1732633680965,20.0,231.39,231.31,25.85709002]
[1732633681245,20.0,231.39,231.32,4.323]
[1732633681416,25.85709002,231.36,231.3,4.3233]
[1732633681613,25.85709002,231.42,231.33,25.85709002]
[1732633681844,30.17819002,231.42,231.33,25.85709002]
[1732633682217,25.85709002,231.44,231.35,25.85709002]
[1732633682417,43.29550294,231.48,231.39,25.85709002]
[1732633682619,13.11831292,231.48,231.41,25.85709002]
[1732633682830,17.43841292,231.48,231.41,25.85709002]
[1732633683029,43.29550294,231.48,231.39,25.85709002]
[1732633683445,25.85709002,231.46,231.37,25.85709002]
[1732633683649,25.85709002,231.42,231.35,25.85709002]
[1732633683820,25.85709002,231.4,231.31,30.18029002]
[1732633684148,25.85709002,231.34,231.25,30.18119002]
[1732633684318,30.6,231.45,231.23,25.85709002]
[1732633684319,25.85709002,231.3,231.23,25.85709002]
[1732633684523,25.85709002,231.3,231.21,25.85709002]
[1732633684840,25.85709002,231.28,231.2,30.6273]
[1732633685037,25.85709002,231.28,231.21,25.85709002]
[1732633685374,25.85709002,231.3,231.21,30.18209002]
[1732633685542,25.85709002,231.28,231.21,30.18209002]
[1732633686114,25.85709002,231.3,231.21,30.18209002]
[1732633686319,25.85709002,231.28,231.21,25.85709002]
[1732633686631,20.0,231.3,231.25,42.0234321]
[1732633686840,20.0,231.3,231.23,42.0234321]
[1732633687033,42.0234321,231.33,231.24,23.776884]
[1732633687340,42.0234321,231.33,231.24,28.776884]
[1732633687552,42.0234321,231.33,231.24,33.101184]
[1732633687725,46.3463321,231.33,231.25,42.0234321]
[1732633688452,46.3463321,231.33,231.24,28.101184]
[1732633688453,42.0234321,231.31,231.24,28.101184]
[1732633688653,42.0234321,231.31,231.24,4.3243]
[1732633688825,46.3466321,231.31,231.22,9.3247]
[1732633689150,42.0234321,231.25,231.15,42.0234321]
[1732633689347,42.0234321,231.21,231.15,4.326]
[1732633689517,42.0234321,231.21,231.13,6.0331]
[1732633689518,42.0234321,231.19,231.13,6.0331]
[1732633689723,42.0234321,231.19,231.11,9.3268]
[1732633690149,42.0234321,231.15,231.09,0.5243705]
[1732633690525,42.0234321,231.13,231.09,0.5243705]
[1732633690851,46.3501321,231.13,231.09,0.5243705]
[1732633691948,20.0,231.14,231.09,0.5243705]
[1732633692129,42.0234321,231.15,231.09,0.5243705]
[1732633692630,42.0234321,231.17,231.09,42.5478026]
[1732633693049,42.0234321,231.21,231.13,42.0234321]
[1732633693225,42.0234321,231.23,231.13,42.0234321]
[1732633693425,42.0234321,231.21,231.13,42.0234321]
[1732633693931,42.0234321,231.23,231.13,42.0234321]
[1732633694349,42.0234321,231.21,231.13,42.0234321]
[1732633694849,42.0234321,231.16,231.09,0.5243705]
[1732633695033,42.0234321,231.14,231.09,0.5243705]
[1732633695229,42.0234321,231.12,231.09,0.5243705]
[1732633695744,42.0234321,231.14,231.09,0.5243705]
[1732633696056,42.0234321,231.16,231.09,46.8750026]
[1732633696247,62.0234321,231.2,231.11,42.0234321]
[1732633696752,62.0234321,231.2,231.13,42.0234321]
[1732633696956,62.0234321,231.2,231.13,46.3498321]
[1732633697455,5.0,231.33,231.15,42.0234321]
[1732633697456,42.0234321,231.22,231.15,42.0234321]
[1732633697656,42.0234321,231.22,231.13,46.3498321]
[1732633698349,42.0234321,231.2,231.13,4.3264]
[1732633698734,42.0234321,231.2,231.13,46.3498321]
[1732633699245,42.0234321,231.2,231.13,4.3264]
[1732633699450,42.0234321,231.2,231.13,46.3498321]
[1732633699738,42.0234321,231.2,231.13,4.3264]
[1732633699933,42.0234321,231.2,231.11,42.0234321]
[1732633700137,42.0234321,231.16,231.09,0.5243705]
[1732633700350,42.0234321,231.14,231.09,0.5243705]
[1732633701251,42.0234321,231.16,231.1,42.0234321]
[1732633701434,4.3253,231.2,231.12,42.0234321]
[1732633701435,42.0234321,231.2,231.12,42.0234321]
[1732633701631,42.0234321,231.16,231.09,4.8515705]
[1732633701843,42.0234321,231.16,231.09,0.5243705]
[1732633702032,42.0234321,231.16,231.09,4.8515705]
[1732633702239,42.0234321,231.18,231.09,4.8515705]
[1732633702646,42.0234321,231.18,231.1,42.0234321]
[1732633702859,20.0,231.19,231.11,4.3269]
[1732633703047,42.0234321,231.2,231.11,4.3269]
[1732633703242,42.0234321,231.2,231.12,42.0234321]
[1732633704266,46.3482321,231.22,231.12,42.0234321]
[1732633704554,42.0234321,231.2,231.12,42.0234321]
[1732633704772,42.0234321,231.18,231.11,4.3269]
[1732633704967,42.0234321,231.12,231.09,0.5243705]
[1732633705140,5.6,231.21,231.09,0.5243705]
[1732633705141,42.0234321,231.1,231.09,0.5243705]
[1732633706961,46.3505321,231.1,231.09,0.5243705]
[1732633707161,42.0234321,231.1,231.09,0.5243705]
[1732633707337,42.0234321,231.12,231.09,0.5243705]
[1732633707536,20.0,231.13,231.09,0.5243705]
[1732633707744,42.0234321,231.12,231.09,0.5243705]
[1732633708245,42.0234321,231.1,231.09,0.5243705]
[1732633708567,20.0,231.1,231.09,0.5243705]
[1732633708938,62.0234321,231.1,231.09,0.5243705]
[1732633709135,20.0,231.1,231.09,0.5243705]